bitfinex/quotes_ETHUSD_20251010
["timestamp","ask_amount","ask_price","bid_price","bid_amount"]
[1760110704795,0.023842,4134.4,4131.6,2.42032127]
[1760110705000,3.37031,4134.3,4131.0,14.5]
[1760110705267,0.023842,4134.4,4131.1,3.957]
[1760110705268,7.699715,4134.1,4131.1,3.957]
[1760110705598,0.1208,4131.3,4131.2,3.957]
[1760110705801,0.4666,4132.9,4131.2,3.957]
[1760110706695,0.023842,4134.4,4131.3,12.0773]
[1760110707063,0.023842,4134.4,4131.4,0.4353]
[1760110707500,0.023842,4134.4,4132.3,14.5]
[1760110707662,0.023842,4134.4,4132.4,0.4353]
[1760110708005,0.474842,4134.4,4131.8,1.863]
[1760110708307,0.474842,4134.4,4131.9,3.114]
[1760110708308,1.92,4134.2,4131.9,3.114]
[1760110708480,0.023842,4134.4,4130.5,14.5]
[1760110708481,0.6904842,4134.1,4130.5,14.5]
[1760110708676,0.451,4134.1,4131.4,5.822]
[1760110708890,0.451,4134.1,4131.5,5.772]
[1760110709307,0.451,4134.0,4131.5,5.772]
[1760110709696,0.37943947,4134.1,4131.6,0.4353]
[1760110709896,0.37943947,4134.1,4131.7,0.62073]
[1760110710097,0.451,4134.0,4130.8,0.4353]
[1760110710271,0.451,4134.0,4130.1,0.22]
[1760110710272,6.806572,4133.8,4130.1,0.22]
[1760110710474,2.371,4133.7,4130.2,2.241]
[1760110710790,0.451,4133.7,4130.8,2.42082591]
[1760110710977,0.451,4133.7,4130.3,14.9353]
[1760110711184,0.023842,4134.4,4130.4,2.16393]
[1760110711381,0.023842,4134.4,4130.6,2.42095579]
[1760110711580,0.023842,4134.4,4130.1,0.11]
[1760110711581,0.023842,4134.4,4131.3,2.42051908]
[1760110711890,0.023842,4134.4,4131.4,1.624]
[1760110711891,0.451,4134.3,4131.4,1.624]
[1760110712090,0.451,4134.2,4131.4,1.624]
[1760110712293,0.451,4134.2,4131.4,1.7864]
[1760110712493,0.351,4134.2,4131.4,0.1624]
[1760110712705,1.92,4133.9,4130.2,0.4482]
[1760110713004,1.92,4133.5,4130.3,0.384]
[1760110713206,10.775325,4133.2,4130.4,0.257]
[1760110713535,0.87065936,4133.8,4130.4,0.257]
[1760110713536,1.92,4132.7,4130.4,0.257]
[1760110713672,3.952,4133.1,4130.4,0.257]
[1760110713673,1.4615325,4132.6,4130.4,0.257]
[1760110713873,3.952,4133.1,4129.6,0.174]
[1760110713874,1.92,4132.8,4129.6,0.174]
[1760110714073,0.37965655,4132.8,4129.6,0.174]
[1760110714276,1.92,4132.2,4129.6,0.002]
[1760110714613,1.92,4131.6,4129.6,0.002]
[1760110714826,0.095,4129.7,4126.6,0.2165]
[1760110715026,0.095,4129.7,4125.2,14.612]
[1760110715027,0.095,4129.7,4127.5,0.002]
[1760110715222,0.4468,4129.6,4125.2,15.09700861]
[1760110715422,1.92,4129.4,4125.3,7.32370086]
[1760110715638,10.775325,4129.1,4125.4,3.952]
[1760110715925,2.56435936,4128.8,4125.4,3.952]
[1760110716128,6.758077,4128.5,4125.4,3.952]
[1760110716422,6.758077,4128.5,4124.1,0.114]
[1760110716423,1.92,4128.2,4122.0,0.0683]
[1760110716635,2.94443506,4127.8,4123.1,1.932]
[1760110716789,2.94443506,4127.8,4122.6,0.4482]
[1760110716790,1.92,4127.3,4122.6,0.4482]
[1760110716988,1.92,4127.0,4122.7,2.105]
[1760110717225,2.287692,4126.7,4122.7,2.105]
[1760110717422,0.4468,4126.6,4122.8,0.4482]
[1760110717729,0.4468,4126.6,4119.0,0.24277737]
[1760110717730,2.566,4126.1,4121.1,0.0683]
[1760110718027,2.566,4126.1,4120.1,14.5]
[1760110718028,2.566,4125.4,4120.1,14.5]
[1760110718188,2.566,4125.4,4119.1,0.149]
[1760110718189,15.261325,4125.1,4120.2,7.864]
[1760110718525,0.64435936,4124.3,4120.2,7.685]
[1760110718722,2.566,4124.4,4119.9,2.785]
[1760110718723,1.92,4123.7,4119.9,2.785]
[1760110718927,1.92,4123.5,4120.0,3.952]
[1760110719132,0.4445,4123.4,4120.0,3.952]
[1760110719444,0.4445,4123.4,4118.7,2.42791756]
[1760110719601,1.9192,4123.0,4118.8,1.863]
[1760110719801,3.966201,4122.8,4118.9,2.14124723]
[1760110720006,1.63398183,4122.9,4119.1,2.42771479]
[1760110720007,0.4445,4122.7,4119.1,2.42771479]
[1760110720189,0.85808091,4124.1,4118.9,2.14124723]
[1760110720190,0.4445,4123.4,4119.9,2.42720898]
[1760110720393,0.4445,4123.4,4120.0,4.4012]
[1760110720595,0.85808091,4125.1,4120.1,4.4685]
[1760110720596,0.64435936,4125.1,4120.1,4.4685]
[1760110720829,1.08008091,4125.3,4120.2,0.89505]
[1760110720830,0.61474403,4125.0,4120.2,0.89505]
[1760110721063,0.222,4125.3,4120.3,11.9732]
[1760110721064,0.4423,4124.9,4120.3,11.9732]
[1760110721226,9.440731,4124.8,4120.3,0.4482]
[1760110721438,0.4423,4124.8,4121.0,2.42657786]
[1760110721736,0.4423,4124.8,4120.1,8.32041649]
[1760110721737,10.329146,4124.4,4120.1,0.5165]
[1760110721894,1.92,4124.1,4119.6,0.4482]
[1760110722096,2.995076,4123.8,4119.7,2.093]
[1760110722319,0.4423,4123.7,4119.8,0.4482]
[1760110722527,0.4423,4123.7,4119.9,8.0]
[1760110722895,0.4423,4123.7,4120.0,2.87538048]
[1760110723095,0.4423,4123.7,4120.1,0.5165]
[1760110723294,0.86655936,4126.0,4120.2,4.80565]
[1760110723295,2.298275,4124.2,4120.2,4.80565]
[1760110723529,0.6643,4125.3,4120.4,2.42694883]
[1760110723736,6.100592,4125.2,4120.5,0.4482]
[1760110724046,4.726159,4125.0,4120.5,0.4482]
[1760110724223,0.4423,4124.9,4121.9,2.42605779]
[1760110724540,0.38031808,4124.6,4122.0,10.00580578]
[1760110724747,6.022831,4125.9,4122.1,2.5222]
[1760110724976,3.024545,4124.8,4120.5,0.4482]
[1760110725280,1.864,4125.9,4120.7,1.29589417]
[1760110725281,1.92,4124.4,4120.7,1.29589417]
[1760110725459,1.92,4124.2,4119.7,1.28173084]
[1760110725623,1.92,4123.8,4119.9,1.29728978]
[1760110725823,10.775325,4123.5,4120.1,1.27472025]
[1760110726031,0.6643,4123.7,4119.7,1.864]
[1760110726032,0.4463,4123.4,4120.3,1.26292402]
[1760110726335,1.92,4123.0,4120.5,1.27800972]
[1760110726546,0.3804374,4123.1,4120.5,1.27800972]
[1760110726752,0.218,4123.7,4120.7,1.29589417]
[1760110727123,0.218,4123.7,4120.9,1.22508522]
[1760110727329,3.954,4124.6,4121.1,3.65491878]
[1760110727524,0.63382984,4126.7,4120.8,5.828]
[1760110727525,0.38032892,4125.4,4121.4,2.42635997]
[1760110727874,1.2880788,4127.6,4121.6,1.27140388]
[1760110727875,4.770369,4125.9,4121.6,1.27140388]
[1760110728026,0.4992569,4125.8,4121.8,1.25811906]
[1760110728222,0.38026617,4126.5,4122.0,1.24213417]
[1760110728438,0.0022,4127.1,4122.4,1.21365975]
[1760110728636,10.790384,4127.2,4123.3,2.42524191]
[1760110728838,0.0022,4127.1,4122.6,1.26296099]
[1760110729075,10.991715,4126.9,4122.7,5.82]
[1760110729233,10.991715,4126.9,4122.8,0.7082961]
[1760110729234,30.0,4126.5,4122.8,0.7082961]
[1760110729438,2.483233,4126.3,4122.8,0.7082961]
[1760110729668,0.0022,4126.4,4122.9,0.4431]
[1760110729874,0.0022,4126.4,4123.0,6.995]
[1760110730171,30.0,4129.0,4123.2,2.42530073]
[1760110730361,30.0,4129.0,4122.8,0.7082961]
[1760110730362,0.38011674,4128.7,4123.3,1.38513007]
[1760110730530,30.0,4128.6,4123.3,0.4431]
[1760110730870,30.0,4128.6,4123.4,1.865]
[1760110731076,2.566,4128.3,4123.5,1.865]
[1760110731281,30.0,4128.6,4123.3,0.4431]
[1760110731437,1.92,4127.9,4122.6,1.70606099]
[1760110731770,30.0,4127.4,4122.7,0.647]
[1760110731975,4.486,4126.8,4122.7,1.439]
[1760110732133,0.38021284,4127.0,4121.8,0.4431]
[1760110732134,2.566,4126.2,4121.9,1.20264393]
[1760110732479,1.92,4125.7,4121.9,1.20264393]
[1760110732776,30.0,4125.2,4122.6,1.26496099]
[1760110733087,25.345588,4124.8,4122.6,1.26496099]
[1760110733239,8.46641419,4125.1,4122.6,1.26496099]
[1760110733240,1.92,4124.5,4122.6,1.26496099]
[1760110733573,0.0022,4125.6,4122.6,1.26496099]
[1760110733734,0.2178,4126.0,4122.7,6.2721]
[1760110733935,6.861527,4125.8,4122.8,3.954]
[1760110734282,3.580816,4125.6,4122.6,1.26496099]
[1760110734580,1.92,4125.1,4122.6,1.26496099]
[1760110734744,10.445684,4124.8,4122.6,1.26496099]
[1760110734944,4.073618,4124.6,4122.6,1.26496099]
[1760110735133,1.92,4124.3,4122.6,1.26496099]
[1760110735332,0.9664155,4124.2,4122.6,1.26496099]
[1760110735546,2.08336292,4127.8,4122.6,1.26496099]
[1760110735547,1.92,4124.0,4122.6,2.77896099]
[1760110735760,0.2224,4123.9,4122.6,2.77896099]
[1760110735963,0.2224,4123.8,4122.6,1.26496099]
[1760110736557,9.110787,4124.0,4122.6,1.26496099]
[1760110736773,1.92,4123.9,4122.6,1.26496099]
[1760110737092,1.92,4123.7,4122.2,0.002]
[1760110737253,11.762245,4123.6,4122.2,0.002]
[1760110737449,3.954,4123.5,4119.3,0.002]
[1760110737675,1.92,4123.4,4119.3,0.002]
[1760110737880,1.92,4123.2,4119.4,0.4617]
[1760110738152,1.92,4122.8,4119.5,0.62937]
[1760110738505,1.92,4122.3,4118.8,0.413]
[1760110738669,13.748151,4122.0,4118.8,0.413]
[1760110738995,1.92,4121.7,4118.8,0.413]
[1760110739199,1.92,4121.5,4118.8,0.413]
[1760110739408,4.053,4121.6,4118.8,0.413]
[1760110739409,0.099,4121.6,4118.8,0.413]
[1760110739689,0.204,4121.5,4118.8,0.413]
[1760110739931,0.3059,4121.4,4118.8,0.413]
[1760110740053,2.268427,4121.1,4118.8,0.413]
[1760110740252,4.328379,4120.9,4118.2,5.83]
[1760110740457,3.273652,4120.7,4118.1,0.002]
[1760110740682,0.3059,4121.4,4118.5,0.4617]
[1760110740849,0.38068334,4122.9,4118.7,2.3277]
[1760110741058,0.339,4123.4,4118.8,22.32528953]
[1760110741264,0.339,4123.4,4118.9,14.9617]
[1760110741265,27.477967,4123.3,4118.9,14.9617]
[1760110741501,0.339,4123.4,4118.9,0.4617]
[1760110741502,1.92,4123.0,4118.9,0.4617]
[1760110741650,16.718863,4122.7,4118.9,0.4617]
[1760110741999,8.35207132,4122.6,4118.1,0.002]
[1760110742306,30.0,4122.2,4118.1,0.002]
[1760110742596,4.443173,4121.8,4118.3,0.4617]
[1760110742754,0.51287132,4121.7,4118.3,0.4617]
[1760110742954,1.92,4121.4,4118.3,0.4617]
[1760110743261,0.51442207,4121.4,4118.1,0.002]
[1760110743451,0.0994,4121.3,4118.1,0.002]
[1760110743681,1.92,4121.1,4118.1,0.002]
[1760110743880,0.6164785,4121.0,4118.1,0.002]
[1760110744085,0.754,4120.9,4118.4,0.4617]
[1760110744281,0.754,4120.9,4118.1,0.002]
[1760110744486,4.295124,4120.8,4118.1,0.002]
[1760110744794,0.51553702,4120.7,4118.1,0.002]
[1760110745108,0.41,4120.6,4118.4,0.4617]
[1760110745306,1.9654,4121.1,4118.4,0.4617]
[1760110745307,1.584,4120.5,4118.4,0.4617]
[1760110745530,0.1584,4120.4,4118.1,0.002]
[1760110745735,0.0994,4120.6,4118.1,0.002]
[1760110746025,1.932,4120.5,4118.3,0.4617]
[1760110746176,1.92,4120.3,4118.1,0.002]
[1760110746384,0.51553702,4120.3,4118.1,0.002]
[1760110746577,3.018,4120.2,4118.1,0.002]
[1760110746824,1.92,4119.9,4118.1,0.002]
[1760110747021,1.92,4119.7,4118.1,0.002]
[1760110747181,0.244,4119.6,4118.1,0.002]
[1760110747383,0.2166,4119.9,4118.1,0.002]
[1760110747619,0.3807898,4120.8,4118.1,0.002]
[1760110747816,0.1208,4120.2,4119.5,0.1208]
[1760110748127,0.1208,4120.2,4118.7,0.6833]
[1760110748128,0.1208,4119.7,4118.8,0.1208]
[1760110748286,0.27,4121.0,4119.3,0.1208]
[1760110748486,1.71540676,4123.0,4118.7,0.6833]
[1760110748487,0.51553702,4122.4,4119.4,0.46701345]
[1760110748821,0.344,4122.4,4119.5,14.77170134]
[1760110748988,5.834,4124.1,4119.5,14.77170134]
[1760110748989,0.099,4123.6,4119.6,0.4617]
[1760110749186,0.099,4123.5,4119.6,0.4617]
[1760110749607,2.09586396,4125.2,4119.7,14.5]
[1760110749885,2.438,4124.6,4119.8,0.4617]
[1760110750086,1.29438096,4123.8,4119.9,5.45017]
[1760110750426,0.223,4123.7,4120.0,0.4617]
[1760110750598,8.72799996,4123.6,4120.0,0.4617]
[1760110750792,1.29438096,4123.4,4120.0,0.4617]
[1760110750992,1.29438096,4122.9,4119.5,0.27170134]
[1760110751225,0.099,4122.8,4119.6,0.4617]
[1760110751426,0.516,4122.8,4119.6,0.4617]
[1760110751634,0.099,4122.7,4119.6,0.4617]
[1760110751828,0.343,4122.6,4119.6,0.4617]
[1760110752121,0.001,4122.9,4121.1,2.42653092]
[1760110752320,0.001,4122.9,4121.8,2.42612155]
[1760110752529,0.001,4122.9,4121.8,3.953]
[1760110752700,0.001,4122.9,4121.8,4.4147]
[1760110753021,0.001,4122.9,4121.9,0.4617]
[1760110753227,0.001,4122.9,4121.9,16.8817]
[1760110753430,0.001,4123.4,4122.8,0.2216]
[1760110754021,0.001,4123.4,4122.9,0.4617]
[1760110754209,0.001,4123.4,4123.1,1.92]
[1760110754408,0.001,4123.4,4122.8,0.2216]
[1760110754616,0.001,4123.4,4122.0,0.4617]
[1760110754792,0.001,4123.4,4120.9,0.4617]
[1760110754993,1.244,4123.3,4120.4,3.403]
[1760110755193,0.001,4123.4,4121.4,0.4617]
[1760110755394,0.001,4123.4,4121.4,3.19505718]
[1760110755606,0.001,4123.4,4121.7,15.79961953]
[1760110755805,1.29438096,4126.6,4121.9,2.42606564]
[1760110756042,1.7164381,4126.5,4122.1,1.92]
[1760110756241,1.92,4126.3,4122.2,0.4617]
[1760110756404,0.51687741,4126.3,4123.0,2.42541154]
[1760110756605,4.811481,4125.9,4123.1,0.4617]
[1760110756806,5.818,4126.2,4123.1,0.4617]
[1760110756807,1.92,4125.7,4123.1,0.4617]
[1760110757022,0.66169774,4125.6,4123.1,0.4617]
[1760110757433,0.2281,4125.8,4123.1,0.4617]
[1760110757641,0.51687741,4126.4,4124.1,2.42475151]
[1760110757924,0.61837741,4127.3,4124.2,0.4617]
[1760110758126,1.81125837,4128.3,4124.4,2.42459509]
[1760110758295,0.1026,4128.5,4124.3,1.614]
[1760110758296,2.390557,4127.9,4124.5,2.77772951]
[1760110758495,0.1208,4125.8,4125.1,0.1208]
[1760110758757,0.11,4126.8,4125.1,0.1208]
[1760110758957,0.869,4126.8,4124.6,0.4617]
[1760110759359,0.869,4126.8,4124.3,1.614]
[1760110759559,1.92,4126.6,4123.1,0.2216]
[1760110759758,1.92,4126.6,4122.0,2.01456852]
[1760110759759,5.05494,4126.3,4122.4,2.3277]
[1760110759967,0.61987741,4126.2,4122.5,0.4617]
[1760110760159,1.92,4125.9,4122.5,0.4617]
[1760110760362,0.634,4125.8,4122.5,0.4617]
[1760110760565,0.103,4126.2,4122.5,16.41431953]
[1760110760790,0.51687741,4126.8,4124.2,15.79961953]
[1760110761082,2.27687876,4128.0,4125.1,15.79961953]
[1760110761083,0.51687741,4127.6,4125.1,15.79961953]
[1760110761384,0.19351584,4128.0,4125.2,4.4107]
[1760110761562,1.045,4128.8,4125.3,0.4617]
[1760110761731,0.13,4128.8,4126.1,15.79961953]
[1760110761938,0.001,4128.8,4126.2,9.96226195]
[1760110762134,0.001,4128.8,4126.8,2.42318503]
[1760110762336,0.001,4128.8,4126.7,15.79961953]
[1760110762551,0.001,4128.8,4126.8,0.4617]
[1760110762761,0.001,4128.8,4127.6,15.79961953]
[1760110763081,0.001,4128.8,4127.7,7.39496195]
[1760110763249,0.001,4128.8,4127.8,1.20865329]
[1760110763448,0.001,4128.8,4127.8,5.15765329]
[1760110763772,0.001,4128.8,4127.8,1.20865329]
[1760110763975,0.001,4128.8,4127.4,3.948]
[1760110763976,0.0002,4128.8,4127.5,1.21651238]
[1760110764484,0.0002,4128.8,4127.1,1.26554571]
[1760110764684,0.0002,4128.8,4128.0,15.79961953]
[1760110764994,0.1032,4133.2,4128.7,0.2216]
[1760110765277,9.107454,4133.0,4127.8,1.20865329]
[1760110765436,1.92,4132.7,4127.9,4.4087]
[1760110765637,24.719721,4132.5,4127.9,0.4617]
[1760110765845,30.0,4132.3,4127.9,2.20869728]
[1760110766049,1.92,4131.6,4127.9,2.20869728]
[1760110766314,7.098222,4131.4,4127.3,1.21641093]
[1760110766481,0.1034,4131.3,4127.4,0.631]
[1760110766815,1.92,4130.7,4127.2,0.4617]
[1760110766972,1.92,4130.5,4127.5,3.946]
[1760110767178,1.92,4130.3,4127.5,3.946]
[1760110767387,3.692167,4129.9,4127.2,0.4617]
[1760110767613,1.92,4129.6,4126.7,0.306]
[1760110767788,1.92,4129.6,4126.4,0.4477]
[1760110767789,6.896274,4129.3,4125.5,0.4477]
[1760110767991,4.528405,4129.1,4125.5,0.4477]
[1760110768325,6.328955,4128.7,4125.5,4.3927]
[1760110768628,1.92,4128.2,4125.6,2.917]
[1760110768805,0.1208,4126.5,4125.8,0.1208]
[1760110769120,3.465331,4128.5,4125.6,2.917]
[1760110769121,0.11,4128.5,4125.9,0.4477]
[1760110769276,0.1208,4126.8,4126.1,0.1208]
[1760110769605,1.92,4129.5,4125.1,0.1208]
[1760110769606,0.1208,4126.1,4125.1,0.1208]
[1760110769904,0.099,4128.1,4125.1,0.45135]
[1760110770308,0.099,4128.1,4125.2,0.45]
[1760110770496,0.164,4128.1,4125.1,4.15235]
[1760110770695,0.099,4128.0,4125.1,3.701]
[1760110770900,0.099,4128.9,4125.2,0.4477]
[1760110771098,0.85975322,4129.7,4125.2,0.4477]
[1760110771099,0.099,4129.7,4125.6,15.79961953]
[1760110771408,0.099,4129.7,4125.7,0.4477]
[1760110771610,0.0993,4131.0,4126.6,15.79961953]
[1760110771809,0.001,4131.3,4127.5,15.79961953]
[1760110771983,0.001,4131.3,4127.7,2.42265668]
[1760110772186,0.001,4131.3,4127.8,1.87168225]
[1760110772385,0.001,4131.3,4127.8,1.864]
[1760110772576,3.093,4131.2,4127.8,1.864]
[1760110772779,4.2727,4131.1,4127.9,3.71327]
[1760110772981,0.0993,4131.0,4128.0,2.464]
[1760110773181,0.0993,4131.0,4128.0,4.328]
[1760110773383,0.0993,4131.0,4128.1,0.4477]
[1760110773845,0.0993,4131.0,4128.2,3.944]
[1760110774053,1.92,4130.8,4128.2,3.944]
[1760110774325,1.92,4130.8,4127.2,2.42294288]
[1760110774326,0.5202326,4130.7,4126.8,2.42318503]
[1760110774515,0.5202326,4130.7,4126.4,15.79961953]
[1760110774516,0.001,4131.3,4127.7,1.864]
[1760110774726,0.001,4131.3,4127.8,4.3907]
[1760110774897,0.001,4131.3,4127.8,0.4477]
[1760110775100,0.001,4131.3,4128.0,15.79961953]
[1760110775430,0.001,4131.3,4128.7,2.42205878]
[1760110775631,0.001,4131.3,4128.1,0.6825]
[1760110775928,0.1009,4131.2,4128.2,0.8507]
[1760110776129,0.1504,4131.1,4128.2,0.3977]
[1760110776329,0.001,4131.3,4128.3,2.428]
[1760110776496,0.001,4131.3,4128.1,0.2348]
[1760110776497,0.001,4131.3,4128.4,2.128]
[1760110776699,0.001,4131.3,4128.5,0.2128]
[1760110776896,1.92,4131.0,4127.0,1.864]
[1760110777096,1.92,4130.6,4127.1,3.942]
[1760110777330,3.852803,4130.3,4127.1,3.942]
[1760110777560,1.92,4130.0,4127.1,3.942]
[1760110777737,0.37980481,4131.0,4127.6,15.79961953]
[1760110777903,0.37980481,4131.0,4127.7,2.02766195]
[1760110778103,0.37980481,4131.0,4128.0,2.42248062]
[1760110778316,0.001,4131.3,4128.9,2.42190631]
[1760110778531,0.1504,4131.2,4128.1,0.6825]
[1760110778718,0.1504,4131.2,4128.2,11.63]
[1760110779036,0.1504,4131.2,4128.3,1.23125]
[1760110779347,0.1504,4131.2,4125.9,2.42365617]
[1760110779348,0.85975322,4130.6,4127.3,1.268]
[1760110779507,0.7204,4130.5,4127.4,1.268]
[1760110779837,1.92,4130.2,4127.5,0.84]
[1760110780003,0.4931162,4130.1,4127.5,0.84]
[1760110780205,0.4931162,4130.1,4127.1,0.4477]
[1760110780206,1.92,4129.7,4127.6,0.709]
[1760110780403,2.43438517,4129.7,4127.6,0.709]
[1760110780641,0.1502,4129.6,4127.2,2.001]
[1760110780828,0.1281,4129.9,4127.3,0.4477]
[1760110781134,0.367,4130.6,4127.3,0.4477]
[1760110781345,0.30783852,4130.5,4127.4,0.24487]
[1760110781648,0.30783852,4130.5,4127.5,0.459]
[1760110781649,0.271,4130.4,4127.5,0.459]
[1760110781849,0.271,4130.4,4126.6,0.4477]
[1760110781850,1.92,4130.2,4126.6,0.4477]
[1760110782037,1.92,4129.6,4126.7,1.835]
[1760110782236,7.412179,4129.1,4126.7,1.835]
[1760110782442,0.85975322,4128.4,4124.7,0.4477]
[1760110782652,5.80965822,4128.1,4124.9,1.863]
[1760110782815,2.77975322,4127.8,4124.9,1.863]
[1760110783149,2.426303,4127.4,4124.9,1.863]
[1760110783351,2.426303,4127.4,4124.8,2.45]
[1760110783352,5.191813,4126.7,4124.8,2.45]
[1760110783553,1.92,4126.4,4122.9,0.4477]
[1760110783732,0.85975322,4126.0,4123.0,1.623]
[1760110784138,0.0993,4125.9,4123.1,1.371]
[1760110784448,2.77975322,4125.7,4123.1,3.234]
[1760110784748,1.29438096,4126.0,4123.1,3.234]
[1760110784749,1.37413839,4125.9,4123.1,5.65931207]
[1760110785077,0.2092,4126.7,4123.2,16.24731953]
[1760110785256,0.099,4126.8,4123.7,2.4249519]
[1760110785553,0.099,4126.8,4123.8,0.4477]
[1760110785714,0.0982,4126.8,4123.9,7.689]
[1760110785919,0.0982,4126.8,4123.8,0.4477]
[1760110786145,0.85975322,4126.3,4123.3,1.94813195]
[1760110786372,0.85975322,4126.3,4123.2,1.864]
[1760110786373,3.29610527,4126.3,4123.4,0.296]
[1760110786527,0.1286,4127.9,4123.4,0.296]
[1760110786528,0.85975322,4127.3,4124.4,15.79961953]
[1760110786734,0.572,4127.2,4123.4,0.4477]
[1760110787039,2.98649522,4126.6,4123.5,3.94]
[1760110787240,0.572,4127.1,4123.6,2.905]
[1760110787241,6.22349,4126.0,4123.6,2.905]
[1760110787567,0.85975322,4124.9,4123.1,0.002]
[1760110787766,1.29438096,4125.2,4121.0,3.453]
[1760110787767,0.2081,4123.7,4121.0,3.453]
[1760110787966,0.85975322,4123.2,4122.7,0.002]
[1760110788169,0.85975322,4123.4,4122.7,0.002]
[1760110788367,2.017,4123.6,4122.7,0.002]
[1760110788368,0.097,4123.1,4122.7,0.002]
[1760110788667,0.706,4123.9,4122.7,0.002]
[1760110788668,0.51687692,4123.8,4122.7,0.002]
[1760110788891,0.51687692,4124.3,4122.7,0.002]
[1760110789092,0.099,4123.7,4122.7,0.002]
[1760110789683,1.92,4124.0,4122.7,0.002]
[1760110789882,0.5101206,4123.9,4122.7,0.002]
[1760110790101,1.92,4124.2,4122.7,0.002]
[1760110790382,6.655065,4123.5,4122.7,0.002]
[1760110790697,0.51687692,4123.4,4122.7,0.002]
[1760110790881,5.23438096,4124.1,4122.7,0.002]
[1760110790882,0.64474974,4123.8,4122.7,0.002]
[1760110791060,1.39338096,4124.4,4122.7,0.002]
[1760110791061,0.51687692,4124.2,4122.7,0.002]
[1760110791394,0.12606267,4124.2,4122.7,0.002]
[1760110791558,0.099,4124.1,4122.7,0.002]
[1760110792097,1.92,4123.6,4122.7,0.002]
[1760110792280,5.720409,4123.3,4122.7,0.002]
[1760110792614,0.64474974,4124.0,4122.7,0.002]
[1760110792795,0.099,4123.7,4122.7,0.002]
[1760110793504,1.92,4123.5,4122.7,0.002]
[1760110793797,2.566,4123.0,4122.7,0.002]
[1760110793965,0.51423259,4123.0,4122.7,0.002]
[1760110794166,0.099,4122.9,4122.7,0.002]
[1760110794596,0.8807607,4123.4,4122.7,0.002]
[1760110794896,0.099,4122.8,4122.7,0.002]
[1760110795095,0.099,4123.4,4122.7,0.002]
[1760110795673,4.396879,4123.3,4122.7,0.002]
[1760110795876,2.5616996,4123.0,4122.7,0.002]
[1760110796101,1.92,4122.6,4119.3,0.003]
[1760110796439,2.775308,4122.4,4119.3,0.003]
[1760110796611,5.86,4122.3,4119.3,0.003]
[1760110796811,5.86,4122.3,4118.9,0.4291]
[1760110796812,1.92,4121.9,4118.9,0.4291]
[1760110797004,2.43310325,4121.9,4119.1,0.012]
[1760110797200,0.2748,4121.8,4119.1,0.012]
[1760110797436,2.092928,4121.7,4119.1,0.012]
[1760110797650,1.92,4121.5,4119.1,0.012]
[1760110797848,0.099,4121.4,4119.1,0.012]
[1760110798314,0.099,4121.4,4119.3,0.107]
[1760110798505,0.099,4121.4,4118.6,0.002]
[1760110798506,7.527662,4121.2,4118.6,0.002]
[1760110798706,5.140716,4121.0,4118.6,0.002]
[1760110798946,0.1176,4119.9,4118.6,0.002]
[1760110799146,3.841962,4121.2,4118.6,0.002]
[1760110799316,0.1176,4119.8,4118.6,0.002]
[1760110799512,0.099,4119.8,4118.6,0.002]
[1760110799706,0.0992,4120.8,4118.6,0.002]
[1760110799922,0.089,4121.9,4118.6,0.002]
[1760110800155,0.0992,4120.1,4118.6,0.002]
[1760110800353,3.392506,4120.0,4118.6,0.002]
[1760110800552,0.3491706,4119.9,4118.6,0.002]
[1760110800766,0.0992,4120.1,4118.6,0.002]
[1760110800970,0.0994,4119.8,4118.6,0.002]
[1760110801172,1.92,4119.7,4118.6,0.002]
[1760110801470,0.2484,4119.8,4118.6,0.002]
[1760110801471,1.92,4119.1,4118.6,0.002]
[1760110801692,1.92,4119.1,4111.8,1.23837486]
[1760110801693,13.635328,4118.4,4114.2,0.2164]
[1760110801837,13.635328,4118.4,4112.8,2.43141847]
[1760110801838,1.92,4118.1,4113.4,1.866]
[1760110802041,30.0,4118.0,4113.5,0.02431019]
[1760110802281,1.92,4117.7,4113.4,0.4335]
[1760110802449,9.849421,4117.4,4114.4,0.002]
[1760110802657,1.92,4117.1,4114.4,0.002]
[1760110802870,0.1022,4118.8,4115.1,0.4335]
[1760110803173,0.1022,4118.8,4115.8,2.42965435]
[1760110803479,0.1208,4117.4,4116.8,2.54985141]
[1760110803681,0.1208,4117.4,4115.9,5.45046543]
[1760110803682,0.1028,4119.7,4116.9,0.6499]
[1760110803840,0.1028,4119.6,4117.0,2.294]
[1760110804040,2.333596,4119.4,4117.1,0.428]
[1760110804247,0.1028,4119.5,4117.2,0.02428835]
[1760110804568,0.1028,4119.5,4116.7,0.4335]
[1760110804742,0.1028,4119.5,4117.2,3.408]
[1760110805162,0.1028,4119.5,4116.8,0.2862717]
[1760110805163,0.1028,4119.5,4117.3,5.779]
[1760110805353,0.38076421,4120.5,4117.3,5.779]
[1760110805552,0.64196483,4122.3,4117.3,5.779]
[1760110805553,3.592804,4121.7,4117.4,0.4335]
[1760110805765,6.47696483,4122.6,4117.4,0.4335]